bitfinex/quotes_ETHUSD_20250703
["timestamp","ask_amount","ask_price","bid_price","bid_amount"]
[1751515360427,27.82982761,2564.4,2564.3,0.01]
[1751515362659,23.92827996,2564.4,2564.3,0.01]
[1751515363365,27.82782761,2564.4,2564.3,0.01]
[1751515364962,27.82882761,2564.4,2564.3,0.01]
[1751515370769,27.82782761,2564.4,2564.3,0.01]
[1751515380401,17.99882761,2564.4,2564.3,0.01]
[1751515380607,27.82382761,2564.4,2564.3,0.01]
[1751515383623,28.36884961,2564.4,2564.3,0.01]
[1751515385499,27.82382761,2564.4,2564.3,0.01]
[1751515388612,12.74917996,2564.4,2564.3,0.01]
[1751515388821,14.48077996,2564.4,2564.3,0.01]
[1751515389137,26.84032761,2564.4,2564.3,0.01]
[1751515389295,27.64482761,2564.4,2564.3,0.01]
[1751515390517,34.93809822,2564.4,2564.3,0.01]
[1751515392103,35.48312022,2564.4,2564.3,0.01]
[1751515393711,34.93709822,2564.4,2564.3,0.01]
[1751515396548,44.31109822,2564.4,2564.3,0.01]
[1751515397645,52.30109822,2564.4,2564.3,0.01]
[1751515401830,48.39655057,2564.4,2564.3,0.01]
[1751515402023,37.76205057,2564.4,2564.3,0.01]
[1751515402228,47.59405057,2564.4,2564.3,0.01]
[1751515402952,40.30177996,2564.4,2564.3,0.01]
[1751515403360,41.11157996,2564.4,2564.3,0.01]
[1751515403566,31.27857996,2564.4,2564.3,0.01]
[1751515403734,30.46877996,2564.4,2564.3,0.01]
[1751515404054,40.30077996,2564.4,2564.3,0.01]
[1751515405022,20.13807768,2564.4,2564.3,0.01]
[1751515405625,12.23307768,2564.4,2564.3,0.01]
[1751515405825,20.13907768,2564.4,2564.3,0.01]
[1751515406027,20.14106144,2564.4,2564.3,0.01]
[1751515407342,12.23506144,2564.4,2564.3,0.01]
[1751515407658,20.14006144,2564.4,2564.3,0.01]
[1751515409168,10.30806144,2564.4,2564.3,0.01]
[1751515409371,10.76406144,2564.4,2564.3,0.2944]
[1751515409524,2.86106144,2564.4,2564.3,0.2944]
[1751515409725,9.83,2564.4,2564.3,0.2944]
[1751515409931,10.76406144,2564.4,2564.3,0.2944]
[1751515411282,9.83,2564.4,2564.3,0.2944]
[1751515411511,1.927,2564.4,2564.3,0.2944]
[1751515411664,9.83,2564.4,2564.3,0.2944]
[1751515412776,9.828,2564.4,2564.3,0.2944]
[1751515414888,1.927,2564.4,2564.3,0.2944]
[1751515415185,9.827,2564.4,2564.3,0.2944]
[1751515417392,1.927,2564.4,2564.3,0.2944]
[1751515417593,9.827,2564.4,2564.3,0.2944]
[1751515420097,11.76854,2564.4,2564.3,0.01]
[1751515422300,9.827,2564.4,2564.3,0.01]
[1751515433232,10.76090668,2564.4,2564.3,0.01]
[1751515437247,0.93390668,2564.4,2564.3,0.01]
[1751515437446,9.823,2564.4,2564.3,0.01]
[1751515437610,10.75690668,2564.4,2564.3,0.01]
[1751515440251,2.96843735,2564.4,2564.3,0.01]
[1751515440571,9.823,2564.4,2564.3,0.01]
[1751515440861,10.75690668,2564.4,2564.3,0.01]
[1751515442352,9.823,2564.4,2564.3,0.01]
[1751515442521,1.925,2564.4,2564.3,0.01]
[1751515442729,9.823,2564.4,2564.3,0.01]
[1751515446274,10.75809906,2564.4,2564.3,0.01]
[1751515446444,9.823,2564.4,2564.3,0.01]
[1751515446645,10.75809901,2564.4,2564.3,0.01]
[1751515446941,9.823,2564.4,2564.3,0.01]
[1751515447326,10.75820283,2564.4,2564.3,0.01]
[1751515449463,0.93520283,2564.4,2564.3,0.01]
[1751515449668,9.822,2564.4,2564.3,0.01]
[1751515449968,10.75720283,2564.4,2564.3,0.01]
[1751515450867,2.86020283,2564.4,2564.3,0.01]
[1751515451069,9.822,2564.4,2564.3,0.01]
[1751515451365,10.75720283,2564.4,2564.3,0.01]
[1751515454767,0.93520283,2564.4,2564.3,0.01]
[1751515454959,1.14960283,2564.5,2564.3,0.01]
[1751515455137,9.822,2564.4,2564.3,0.01]
[1751515455338,10.75720283,2564.4,2564.3,0.01]
[1751515462584,10.75620283,2564.4,2564.3,0.01]
[1751515463285,11.52630283,2564.4,2564.3,0.01]
[1751515464891,1.70630283,2564.4,2564.3,0.01]
[1751515465073,1.14960283,2564.5,2564.3,0.01]
[1751515465267,9.82,2564.4,2564.3,0.01]
[1751515465466,10.75520283,2564.4,2564.3,0.01]
[1751515468488,9.82,2564.4,2564.3,0.01]
[1751515470563,12.56644,2564.4,2564.3,0.01]
[1751515473406,13.50181193,2564.4,2564.3,0.01]
[1751515480671,12.69521193,2564.4,2564.3,0.01]
[1751515480888,10.75437193,2564.4,2564.3,0.01]
[1751515483510,11.57847193,2564.4,2564.3,0.01]
[1751515483710,1.75947193,2564.4,2564.3,0.01]
[1751515483914,10.6431,2564.4,2564.3,0.01]
[1751515484115,11.57847193,2564.4,2564.3,0.01]
[1751515486822,0.93537193,2564.4,2564.3,0.01]
[1751515487027,9.818,2564.4,2564.3,0.01]
[1751515487225,10.75337193,2564.4,2564.3,0.01]
[1751515488533,0.93537193,2564.4,2564.3,0.01]
[1751515488734,9.818,2564.4,2564.3,0.01]
[1751515488939,10.75337193,2564.4,2564.3,0.01]
[1751515491657,0.93537193,2564.4,2564.3,0.01]
[1751515491814,1.924,2564.4,2564.3,0.2944]
[1751515492020,9.818,2564.4,2564.3,0.2944]
[1751515492340,10.75337193,2564.4,2564.3,0.2944]
[1751515492513,9.818,2564.4,2564.3,0.2944]
[1751515493144,1.924,2564.4,2564.3,0.2944]
[1751515493452,9.818,2564.4,2564.3,0.2944]
[1751515493822,0.02,2564.5,2564.3,0.2944]
[1751515494162,9.817,2564.4,2564.3,0.2944]
[1751515494924,1.923,2564.4,2564.3,0.2944]
[1751515495253,9.816,2564.4,2564.3,0.2944]
[1751515497453,0.02,2564.5,2564.3,0.2944]
[1751515497645,0.02,2564.5,2564.4,4.09394765]
[1751515497646,1.943,2564.5,2564.4,4.09394765]
[1751515497982,1.943,2564.5,2564.4,0.4788]
[1751515500568,1.943,2564.5,2564.3,0.01]
[1751515500871,7.893,2564.4,2564.3,0.2044]
[1751515501948,9.835,2564.5,2564.3,0.2044]
[1751515506588,7.891,2564.4,2564.3,0.2044]
[1751515506883,7.891,2564.4,2564.3,0.01]
[1751515507182,1.943,2564.5,2564.3,0.2044]
[1751515507394,1.943,2564.5,2564.3,4.10407403]
[1751515507675,0.02,2564.5,2564.4,0.2844]
[1751515507883,0.02,2564.5,2564.4,14.18394765]
[1751515515187,0.01863513,2564.5,2564.4,10.2844]
[1751515515390,0.01863513,2564.5,2564.3,4.10407079]
[1751515515391,0.01863513,2564.5,2564.3,0.2044]
[1751515520591,0.01863513,2564.5,2564.3,4.10408839]
[1751515521658,0.01863513,2564.5,2564.4,3.89954765]
[1751515521861,0.01863513,2564.5,2564.3,11.41278785]
[1751515522387,0.01863513,2564.5,2564.4,3.89954765]
[1751515522973,0.01863513,2564.5,2564.3,11.41278083]
[1751515523487,0.01863513,2564.5,2564.4,3.89954765]
[1751515524688,0.01863513,2564.5,2564.4,13.89954765]
[1751515524993,0.01863513,2564.5,2564.4,14.18394765]
[1751515527089,0.01863513,2564.5,2564.4,18.6107391]
[1751515527462,0.01863513,2564.5,2564.4,19.1607391]
[1751515542831,0.8285,2565.4,2565.3,3.89817955]
[1751515543036,2.7024,2565.6,2565.3,3.89817955]
[1751515543536,2.7024,2565.6,2565.5,0.1944]
[1751515545732,0.7814,2565.6,2565.5,0.1944]
[1751515551241,0.02,2565.6,2565.5,0.1944]
[1751515552918,0.02,2565.6,2565.5,4.09227565]
[1751515553228,0.02,2565.6,2565.5,0.1944]
[1751515555047,0.02,2565.6,2565.5,21.49103791]
[1751515564457,0.02,2565.6,2565.5,21.20663791]
[1751515565179,0.02,2565.6,2565.5,21.40103791]
[1751515565745,0.02,2565.6,2565.5,14.09227565]
[1751515566842,0.02,2565.6,2565.5,14.37667565]
[1751515568879,0.02,2565.6,2565.5,14.92667565]
[1751515576897,0.02,2566.5,2565.9,20.345849]
[1751515577072,0.02,2567.2,2565.7,10.0]
[1751515577073,0.8218,2567.2,2566.5,13.89633683]
[1751515577263,0.8018,2567.7,2567.0,13.89559797]
[1751515577464,1.919,2568.4,2567.3,3.89514275]
[1751515577664,0.94163302,2568.6,2568.2,3.89377774]
[1751515577665,0.8004,2568.3,2568.2,3.89377774]
[1751515577875,0.02,2568.6,2568.2,3.89377774]
[1751515577876,0.8204,2568.6,2568.3,10.0]
[1751515578066,0.8204,2568.6,2568.4,7.89]
[1751515578266,0.8204,2568.6,2568.1,3.89380936]
[1751515578565,0.8204,2568.6,2568.3,13.89350982]
[1751515579301,0.8204,2568.6,2568.4,7.894]
[1751515579494,0.8204,2568.6,2568.5,3.89332295]
[1751515580299,0.02,2568.6,2568.5,11.20208521]
[1751515580486,0.02,2568.6,2568.5,29.10408521]
[1751515581081,0.02,2568.6,2568.5,17.903]
[1751515581277,0.02,2568.6,2568.5,21.79632295]
[1751515581467,0.02,2568.6,2568.5,17.903]
[1751515582083,0.02,2568.6,2568.5,21.79632295]
[1751515584696,0.02,2568.6,2568.5,21.79532295]
[1751515584881,0.02,2568.6,2568.5,17.901]
[1751515585211,0.02,2568.6,2568.2,0.29822248]
[1751515585374,0.02,2568.6,2568.3,7.902]
[1751515585705,0.02,2568.6,2568.3,7.904]
[1751515585906,0.7763,2568.5,2567.5,7.30876226]
[1751515586108,0.7763,2568.5,2567.6,7.911]
[1751515586283,0.7763,2568.3,2567.7,10.0]
[1751515586607,0.7763,2568.3,2567.8,7.911]
[1751515586979,0.7763,2568.3,2567.9,0.1944]
[1751515587818,0.7763,2568.3,2567.5,7.91]
[1751515587974,0.8053,2568.0,2567.6,0.1944]
[1751515588190,0.8053,2568.0,2567.4,7.911]
[1751515588390,0.1944,2567.9,2567.4,0.1944]
[1751515588694,0.8053,2567.8,2567.4,0.1944]
[1751515589227,0.8053,2567.8,2567.1,7.913]
[1751515589434,0.1944,2567.6,2567.2,0.1944]
[1751515589634,0.8031,2567.5,2567.2,0.1944]
[1751515593194,0.8031,2567.5,2567.0,7.912]
[1751515593400,0.8031,2567.5,2567.0,8.1064]
[1751515593401,0.9975,2567.5,2567.0,8.1064]
[1751515595727,0.8031,2567.5,2567.0,7.912]
[1751515595921,0.8031,2567.5,2567.2,0.1944]
[1751515599808,0.7558,2567.8,2567.4,0.1944]
[1751515600013,0.7558,2567.8,2567.6,0.1944]
[1751515602840,0.7558,2567.8,2567.3,10.0]
[1751515603012,0.7558,2567.8,2567.7,0.1944]
[1751515605712,0.7658,2567.8,2567.7,0.1944]
[1751515610644,0.7658,2567.8,2567.2,10.0]
[1751515610846,0.7658,2567.8,2567.5,0.1944]
[1751515617786,0.01,2567.8,2567.7,0.1944]
[1751515629774,0.7697,2567.7,2567.5,0.1944]
[1751515631283,0.7697,2567.7,2567.1,0.02]
[1751515631473,0.9641,2567.7,2567.2,0.1944]
[1751515634580,0.01,2567.8,2567.6,7.48172049]
[1751515635187,0.01,2567.8,2567.6,0.1944]
[1751515635783,0.01,2567.8,2567.7,3.89453596]
[1751515635986,0.01,2567.8,2567.6,4.08904452]
[1751515636174,0.01,2567.8,2567.6,0.1944]
[1751515636590,0.01,2567.8,2567.6,4.08901417]
[1751515636798,0.01,2567.8,2567.6,0.1944]
[1751515637789,0.01,2567.8,2567.7,3.89453596]
[1751515637994,0.01,2567.8,2567.6,4.08901143]
[1751515638701,0.01,2567.8,2567.7,3.89453596]
[1751515641188,0.01,2567.8,2567.7,4.17893596]
[1751515643009,1.948,2568.6,2568.3,0.2844]
[1751515643010,0.02,2568.6,2568.3,0.2844]
[1751515643218,0.02,2568.6,2568.5,13.89332295]
[1751515643511,0.02,2568.6,2568.5,14.08772295]
[1751515644486,0.02,2568.6,2568.5,14.37931716]
[1751515645624,0.02,2568.6,2568.5,8.1034]
[1751515650723,0.02,2568.6,2568.5,0.1944]
[1751515650961,0.7639,2568.5,2568.2,0.1944]
[1751515652744,0.7639,2568.5,2568.2,3.893719]
[1751515652947,0.02,2568.6,2568.4,0.1944]
[1751515653577,0.02,2568.6,2568.4,4.08787414]
[1751515653773,0.02,2568.6,2568.4,0.1944]
[1751515658202,0.02,2568.6,2568.5,3.89332295]
[1751515658560,0.02,2568.6,2568.5,4.17772295]
[1751515658960,0.02,2568.6,2568.5,12.08572295]
[1751515660265,0.02,2568.6,2568.4,4.08780908]
[1751515660486,0.02,2568.6,2568.5,7.912]
[1751515660705,0.02,2568.6,2568.5,8.412]
[1751515661675,0.02,2568.6,2568.5,0.5]
[1751515661886,0.02,2568.6,2568.5,8.411]
[1751515662271,0.02,2568.6,2568.5,0.5]
[1751515662462,0.02,2568.6,2568.5,8.41]
[1751515663509,0.02,2568.6,2568.5,0.5]
[1751515680315,0.02,2568.6,2568.5,8.397]
[1751515681203,0.02,2568.6,2568.5,0.5]
[1751515682223,0.8369,2568.6,2568.5,0.5]
[1751515682517,0.8369,2568.6,2568.4,0.1944]
[1751515683319,0.8369,2568.6,2568.1,2.33104566]
[1751515683516,0.8369,2568.6,2568.0,0.28953849]
[1751515683517,0.7704,2568.5,2567.8,2.35104566]
[1751515683686,0.7704,2568.5,2567.8,0.02]
[1751515685216,0.7704,2568.5,2567.8,0.31735359]
[1751515685414,0.7704,2568.5,2567.8,0.02]
[1751515687517,0.7704,2568.5,2567.8,3.91436332]
[1751515687710,0.7704,2568.5,2567.8,3.91430926]
[1751515687911,0.7704,2568.5,2567.8,0.02]
[1751515689015,0.02,2568.6,2568.0,0.2844]
[1751515689220,0.02,2568.6,2568.1,7.902]
[1751515690520,0.02,2568.6,2568.1,11.79585886]
[1751515692120,0.02,2568.6,2568.1,7.902]
[1751515693332,0.02,2568.6,2568.4,0.1944]
[1751515698245,0.7813,2568.5,2568.3,0.1944]
[1751515699310,0.7813,2568.5,2568.1,0.1944]
[1751515709950,0.7813,2568.5,2568.1,10.1944]
[1751515711165,0.7813,2568.5,2568.1,13.89384422]
[1751515711360,0.7813,2568.5,2568.3,0.1944]
[1751515712668,0.02,2568.6,2568.3,0.1944]
[1751515715430,0.02,2568.6,2568.3,4.08798496]
[1751515715791,0.02,2568.6,2568.5,0.1944]
[1751515717670,0.02,2568.6,2568.5,4.08772295]
[1751515720576,0.02,2568.6,2568.5,0.1944]
[1751515723267,0.02,2568.6,2568.5,4.08772295]
[1751515723880,0.02,2568.6,2568.5,0.1944]
[1751515725475,0.02,2568.6,2568.5,8.0804]
[1751515725476,0.8025,2568.6,2568.5,8.0804]
[1751515725678,0.8025,2568.6,2568.0,10.0]
[1751515725983,0.8025,2568.6,2567.9,6.22517062]
[1751515725984,0.8025,2568.6,2568.3,0.1944]
[1751515726361,0.8216,2568.4,2568.3,0.1944]
[1751515729259,0.8216,2568.4,2568.0,0.1944]
[1751515730985,0.8216,2568.4,2567.8,0.02]
[1751515730986,0.1944,2568.2,2567.8,0.02]
[1751515731187,0.758,2568.1,2567.8,0.02]
[1751515734173,0.1944,2568.0,2567.8,0.02]
[1751515734377,0.7963,2567.9,2567.8,0.02]
[1751515749205,0.7609,2568.1,2567.8,0.02]
[1751515749409,0.7609,2568.1,2567.8,0.2144]
[1751515749577,0.1944,2568.0,2567.8,0.02]
[1751515752110,0.7516,2567.9,2567.8,0.02]
[1751515752319,0.1944,2568.0,2567.8,0.02]
[1751515752813,0.7946,2568.1,2567.8,0.02]
[1751515753113,0.8046,2568.1,2567.8,0.2144]
[1751515753332,0.01,2568.1,2567.8,0.4988]
[1751515753726,0.01,2568.1,2567.9,3.89423264]
[1751515754028,0.01,2568.1,2568.0,4.08848099]
[1751515755486,0.01,2568.1,2568.0,11.65603133]
[1751515755793,0.01,2568.1,2568.0,21.65603133]
[1751515757521,0.01,2568.1,2568.0,23.98707699]
[1751515758399,0.01,2568.1,2568.0,31.87307699]
[1751515760295,0.01,2568.1,2568.0,29.54103133]
[1751515762802,0.01,2568.1,2568.0,22.25788099]
[1751515763399,0.01,2568.1,2568.0,22.25688099]
[1751515763706,0.01,2568.1,2568.0,18.3628]
[1751515763908,0.01,2568.1,2568.0,0.1944]
[1751515764291,0.01,2568.1,2568.0,8.0794]
[1751515765711,0.01,2568.1,2568.0,0.1944]
[1751515767142,0.01,2568.1,2567.8,7.907]
[1751515767442,0.01,2568.1,2567.9,0.1944]
[1751515768427,0.7572,2568.0,2567.9,0.1944]
[1751515772350,0.7572,2568.0,2567.8,0.02]
[1751515776228,0.01,2568.1,2567.8,0.02]
[1751515776446,0.01,2568.1,2567.9,0.1944]
[1751515785454,0.7723,2568.0,2567.9,0.1944]
[1751515785658,0.7723,2568.0,2567.8,0.02]
[1751515787781,0.7723,2568.0,2567.7,0.1944]
[1751515790681,0.7723,2568.0,2567.8,0.02]
[1751515791047,0.7823,2568.0,2567.8,0.02]
[1751515794481,0.01,2568.0,2567.8,0.02]
[1751515795057,0.01,2568.0,2567.8,3.91431085]
[1751515795382,0.01,2568.0,2567.9,0.1944]
[1751515795749,0.01,2568.0,2567.9,4.08863264]
[1751515795951,0.01,2568.0,2567.9,0.1944]
[1751515800390,0.01,2568.0,2567.8,0.02]
[1751515807967,0.01,2568.0,2567.8,0.2144]
[1751515809713,0.8158,2567.9,2567.8,0.02]
[1751515813207,0.2044,2568.0,2567.8,0.02]
[1751515813440,1.30596,2568.0,2567.8,0.02]
[1751515825742,0.2044,2568.0,2567.8,0.02]
[1751515828412,0.01,2568.0,2567.8,0.02]
[1751515828616,0.01,2568.0,2567.8,0.2144]
[1751515828922,0.7988,2567.9,2567.8,0.02]
[1751515837352,0.2044,2568.0,2567.8,0.02]
[1751515837651,1.30163,2568.0,2567.8,0.02]
[1751515839024,0.2044,2568.0,2567.8,0.02]
[1751515840259,0.01,2567.9,2567.8,0.02]
[1751515845640,0.01,2567.9,2567.8,0.2144]
[1751515850954,0.01,2567.9,2567.8,0.4988]
[1751515866572,0.01,2567.9,2567.8,4.39318429]
[1751515866889,0.01,2567.9,2567.8,0.4988]
[1751515867559,0.01,2567.9,2567.8,4.39318429]
[1751515867761,0.01,2567.9,2567.8,10.22082093]
[1751515869892,0.01,2567.9,2567.8,14.39318429]
[1751515870397,0.01,2567.9,2567.8,16.72422995]
[1751515871305,0.01,2567.9,2567.8,16.72715753]
[1751515871985,0.01,2567.9,2567.8,14.39318429]
[1751515873473,0.01,2567.9,2567.8,16.72619302]
[1751515874083,0.01,2567.9,2567.8,24.60419302]
[1751515875070,0.01,2567.9,2567.8,22.27118429]
[1751515875266,0.01,2567.9,2567.8,22.82118429]
[1751515875472,0.01,2568.5,2568.4,3.89347453]
[1751515875672,0.01,2568.5,2568.4,19.34030099]
[1751515875891,0.01,2568.5,2568.4,19.53470099]
[1751515876086,0.01,2568.5,2568.4,29.53470099]
[1751515876605,0.01,2568.5,2568.4,32.41672421]
[1751515877010,0.01,2568.5,2568.4,30.08470099]
[1751515877386,0.01,2568.5,2568.4,32.41348514]
[1751515877903,0.01,2568.5,2568.4,30.27738463]
[1751515881703,0.01,2568.9,2568.5,3.89332295]
[1751515882008,0.01,2568.9,2568.5,6.50130345]
[1751515882187,0.01,2568.9,2568.5,4.17772295]
[1751515882387,0.01,2568.9,2568.5,21.22035647]
[1751515882698,0.01,2568.9,2568.8,3.89286826]
[1751515882894,0.01,2568.9,2568.8,20.08109472]
[1751515883076,0.01,2568.9,2568.8,22.00009472]
[1751515884990,0.01,2568.9,2568.8,22.2957198]
[1751515885930,0.01,2568.9,2568.8,27.0157198]
[1751515886607,0.01,2568.9,2568.8,9.10289334]
[1751515886790,0.01,2568.9,2568.8,26.97689334]
[1751515891637,0.01,2568.9,2568.8,22.25689334]
[1751515891841,0.01,2568.9,2568.8,8.36302508]
[1751515892743,0.8053,2568.9,2568.8,0.1944]
[1751515893029,0.8053,2568.9,2568.6,0.1944]
[1751515894411,0.8053,2568.9,2568.6,7.873]
[1751515894726,0.8053,2568.9,2568.8,0.1944]
[1751515895898,0.01,2568.9,2568.8,0.1944]
[1751515896130,0.01,2568.9,2568.8,4.08726826]
[1751515904938,0.01,2568.9,2568.8,0.1944]
[1751515905704,0.01,2568.9,2568.8,8.0674]
[1751515906106,0.8307,2568.9,2568.8,8.0674]
[1751515906840,0.8307,2568.9,2568.8,0.1944]
[1751515907044,0.8307,2568.9,2568.8,8.0674]
[1751515912254,0.8307,2568.9,2568.8,0.1944]
[1751515912413,0.8307,2568.9,2568.7,8.0664]
[1751515914221,0.8307,2568.9,2568.7,11.95939726]
[1751515914432,0.01,2568.9,2568.8,4.08726826]
[1751515915536,0.01,2568.9,2568.8,0.1944]
[1751515919052,0.8012,2568.9,2568.8,7.872]
[1751515922552,0.01,2568.9,2568.8,11.76486826]
[1751515922860,0.01,2568.9,2568.8,11.95926826]
[1751515924182,0.01,2568.9,2568.8,8.0664]
[1751515924351,0.01,2568.9,2568.8,11.95926826]
[1751515924756,0.01,2568.9,2568.8,8.0664]
[1751515925266,0.01,2568.9,2568.8,11.95926826]
[1751515925644,0.01,2568.9,2568.8,8.0664]
[1751515925862,0.01,2568.9,2568.8,11.95926826]
[1751515929870,0.01,2568.9,2568.8,0.1944]
[1751515930076,0.01,2568.9,2568.8,8.0654]
[1751515930452,0.01,2568.9,2568.8,11.95826826]
[1751515933672,0.01,2568.9,2568.8,4.08726826]
[1751515933863,0.01,2568.9,2568.8,8.0654]
[1751515934178,0.01,2568.9,2568.8,11.95826826]
[1751515934558,0.01,2568.9,2568.8,8.0654]
[1751515935674,0.01,2568.9,2568.8,0.1944]
[1751515935860,0.8005,2568.9,2568.8,8.0654]
[1751515936176,0.8005,2568.9,2568.8,11.95826826]
[1751515936476,0.8005,2568.9,2568.8,8.0654]
[1751515940003,0.8005,2568.9,2568.8,0.1944]
[1751515940554,0.8005,2568.9,2568.8,8.0644]
[1751515941256,0.8005,2568.9,2568.8,0.1944]
[1751515941760,0.8005,2568.9,2568.8,11.95726826]
[1751515941961,0.01,2568.9,2568.8,11.95726826]
[1751515945607,0.01,2568.9,2568.8,8.0644]
[1751515946013,0.01,2568.9,2568.8,11.95726826]
[1751515947219,0.01,2568.9,2568.8,12.24166826]
[1751515947992,0.01,2568.9,2568.8,4.37166826]
[1751515948190,0.01,2568.9,2568.8,12.24166826]
[1751515952698,0.01,2568.9,2568.8,19.52609472]
[1751515960519,0.01,2568.9,2568.8,29.52609472]
[1751515965606,0.01,2568.9,2568.8,34.24609472]
[1751515969415,0.01,2568.9,2568.8,29.52609472]
[1751515971240,0.01,2568.9,2568.8,30.07609472]
[1751515974534,0.01,2568.9,2568.8,31.98709472]
[1751515975134,0.01,2568.9,2568.8,22.20609472]
[1751515975334,0.01,2568.9,2568.8,29.52209472]
[1751515978957,0.01,2568.9,2568.8,29.52109472]
[1751515980155,0.01,2568.9,2568.8,22.23666826]
[1751515981954,0.01,2568.9,2568.8,14.37166826]
[1751515982149,0.01,2568.9,2568.8,21.95226826]
[1751515987338,0.01,2568.9,2568.8,14.08726826]
[1751515987538,0.01,2568.9,2568.8,21.95226826]
[1751515990466,0.01,2568.9,2568.8,25.075539]
[1751515995169,0.01,2568.9,2568.8,29.795539]
[1751515996470,0.01,2568.9,2568.8,30.079939]
[1751515997765,0.01,2568.9,2568.8,35.90155294]
[1751516000475,0.01,2568.9,2568.8,32.7782822]
[1751516001740,0.01,2568.9,2568.8,33.3282822]
[1751516006388,0.01,2568.9,2568.8,39.14989614]
[1751516007475,0.01,2568.9,2568.8,35.2392822]
[1751516007690,0.01,2568.9,2568.8,38.3547405]
[1751516008192,0.01,2568.9,2568.8,35.2392822]
[1751516008774,1e-08,2569.0,2568.9,14.44271672]
[1751516008970,1e-08,2569.0,2568.9,22.58911672]
[1751516010498,1e-08,2569.0,2568.9,34.14868172]
[1751516013097,1e-08,2569.0,2568.9,42.77277015]
[1751516013470,1e-08,2569.0,2568.9,44.68477015]
[1751516014179,1e-08,2569.0,2568.9,48.05607706]
[1751516018399,0.01,2569.5,2569.4,3.89195921]
[1751516018597,0.01,2569.5,2569.4,34.77615455]
[1751516019702,0.01,2569.5,2569.4,22.46510738]
[1751516020003,0.01,2569.5,2569.4,26.66635921]
[1751516020207,0.01,2569.5,2569.4,18.80635921]
[1751516020208,0.8334,2569.5,2569.4,18.80635921]
[1751516020498,0.8334,2569.5,2569.4,26.66635921]
[1751516021199,0.8334,2569.5,2569.4,21.13745087]
[1751516021599,0.8334,2569.5,2569.4,26.66635921]
[1751516021901,0.8334,2569.5,2569.4,10.1944]
[1751516022107,0.8334,2569.5,2569.4,0.1944]
[1751516022408,0.8334,2569.5,2569.4,8.0544]
[1751516022773,0.8334,2569.5,2569.4,0.1944]
[1751516022973,0.8334,2569.5,2569.4,8.0544]
[1751516025100,0.8334,2569.5,2569.4,11.94635921]
[1751516030903,0.8334,2569.5,2569.4,4.08635921]
[1751516031107,0.8334,2569.5,2569.4,11.94635921]
[1751516032003,0.8334,2569.5,2569.4,4.08635921]
[1751516032210,0.8334,2569.5,2569.4,11.94635921]
[1751516035581,0.8334,2569.5,2569.4,11.94535921]
[1751516038280,0.8334,2569.5,2569.4,14.27645087]
[1751516039424,0.8334,2569.5,2569.4,10.38449166]
[1751516039587,0.8334,2569.5,2569.4,14.27645087]
[1751516044628,0.8334,2569.5,2569.4,2.52549166]
[1751516044811,0.8334,2569.5,2569.4,11.94535921]
[1751516045219,0.8334,2569.5,2569.4,14.27645087]
[1751516053442,0.8334,2569.5,2569.4,10.38449166]
[1751516053752,0.8334,2569.5,2569.4,2.52549166]
[1751516053937,0.8334,2569.5,2569.4,10.38349166]
[1751516055610,0.8334,2569.5,2569.4,2.52549166]
[1751516055808,0.8334,2569.5,2569.4,8.0524]
[1751516058746,0.8334,2569.5,2569.4,11.94435921]
[1751516058949,0.8334,2569.5,2569.4,8.0524]
[1751516059112,0.8334,2569.5,2569.4,11.94435921]
[1751516059512,0.8334,2569.5,2569.4,8.0524]
[1751516062436,0.8334,2569.5,2569.4,0.1944]
[1751516062630,0.8334,2569.5,2569.4,8.0524]
[1751516062831,0.8334,2569.5,2569.4,0.1944]
[1751516063032,0.8334,2569.5,2569.4,7.858]
[1751516063327,0.8334,2569.5,2569.3,8.0524]
[1751516066511,0.8334,2569.5,2569.3,0.1944]
[1751516067111,0.01,2569.5,2569.4,11.74995921]
[1751516067316,0.01,2569.5,2569.4,11.94435921]
[1751516068020,0.01,2569.5,2569.4,8.0524]
[1751516069416,0.01,2569.5,2569.4,11.94435921]
[1751516070750,0.1944,2570.1,2569.4,11.94435921]
[1751516070920,1.62889265,2570.1,2569.4,11.94435921]
[1751516071123,1.62889265,2570.1,2569.6,0.1944]
[1751516071318,1.62889265,2570.1,2569.6,8.0514]
[1751516071518,0.1944,2570.1,2569.6,8.0514]
[1751516073728,0.7554,2570.0,2569.6,8.0514]
[1751516074018,0.1944,2569.8,2569.3,0.1944]
[1751516074228,0.7554,2569.7,2569.3,8.0514]
[1751516083358,0.7554,2569.7,2569.3,11.94346605]
[1751516083559,0.7554,2569.7,2569.4,3.89191307]
[1751516083735,0.7554,2569.7,2569.3,11.74906028]
[1751516083936,0.7554,2569.7,2569.5,0.1944]
[1751516087967,0.7554,2569.7,2569.5,4.08613018]
[1751516088351,0.8232,2569.9,2569.5,4.08613018]
[1751516088761,0.8232,2569.9,2569.5,0.1944]
[1751516089362,0.8232,2569.9,2569.6,3.89164695]
[1751516089569,0.8232,2569.9,2569.5,4.08614023]
[1751516089866,0.8232,2569.9,2569.6,3.89163388]
[1751516090937,0.8232,2569.9,2569.5,4.08614757]
[1751516091462,0.8232,2569.9,2569.6,3.89158406]
[1751516091772,0.8232,2569.9,2569.7,0.1944]